[Event "*** SCC Grand Prix: Titled Tuesday Blitz"]
[Site "Chess.com"]
[Date "2020.07.14"]
[Round "9"]
[White "random_mango"]
[Black "Sergey85Rodchenkov"]
[Result "1/2-1/2"]
[WhiteElo "2367"]
[BlackElo "2507"]
[TimeControl "180+1"]
[EndTime "11:48:16 PDT"]
[Termination "Game drawn - insufficient material"]

1. e4 {[%clk 0:03:00.9]} 1... c5 {[%clk 0:02:59.6]} 2. Nf3 {[%clk 0:03:00.8]}
2... d6 {[%clk 0:02:59.7]} 3. d4 {[%clk 0:03:00.6]} 3... cxd4 {[%clk 0:02:59.8]}
4. Qxd4 {[%clk 0:03:01.5]} 4... e5 {[%clk 0:02:59.2]} 5. Qe3 {[%clk 0:02:52.8]}
5... Nf6 {[%clk 0:02:56.4]} 6. c4 {[%clk 0:02:53.2]} 6... Be7 {[%clk 0:02:55.1]}
7. Be2 {[%clk 0:02:50.2]} 7... O-O {[%clk 0:02:54.6]} 8. h3 {[%clk 0:02:49.4]}
8... h6 {[%clk 0:02:51.5]} 9. O-O {[%clk 0:02:46.7]} 9... Be6 {[%clk 0:02:48.1]}
10. Nc3 {[%clk 0:02:46.7]} 10... Nbd7 {[%clk 0:02:48.1]} 11. b3 {[%clk
0:02:43.3]} 11... a6 {[%clk 0:02:48.1]} 12. Rd1 {[%clk 0:02:35.6]} 12... Qa5
{[%clk 0:02:46]} 13. Bd2 {[%clk 0:02:28]} 13... Qc7 {[%clk 0:02:38.7]} 14. Rac1
{[%clk 0:02:26.3]} 14... Rac8 {[%clk 0:02:38.1]} 15. Nd5 {[%clk 0:02:14.8]}
15... Bxd5 {[%clk 0:02:37.3]} 16. cxd5 {[%clk 0:02:15.7]} 16... Qb8 {[%clk
0:02:35.4]} 17. Rxc8 {[%clk 0:02:10.2]} 17... Rxc8 {[%clk 0:02:34.4]} 18. Rc1
{[%clk 0:02:09.4]} 18... Bd8 {[%clk 0:02:13]} 19. Rxc8 {[%clk 0:02:02.4]} 19...
Qxc8 {[%clk 0:02:12.1]} 20. Bd3 {[%clk 0:01:56.8]} 20... Bb6 {[%clk 0:02:09.7]}
21. Qe1 {[%clk 0:01:53.4]} 21... Qc7 {[%clk 0:01:55.5]} 22. Bb1 {[%clk
0:01:39.9]} 22... Qc5 {[%clk 0:01:39.5]} 23. Be3 {[%clk 0:01:33.1]} 23... Qb5
{[%clk 0:01:37.8]} 24. Bd2 {[%clk 0:01:25.4]} 24... Bc5 {[%clk 0:01:31.6]} 25.
Nh4 {[%clk 0:01:22.3]} 25... Qb6 {[%clk 0:01:26.9]} 26. Nf5 {[%clk 0:01:21.4]}
26... Qc7 {[%clk 0:01:16.7]} 27. b4 {[%clk 0:01:17.6]} 27... Bb6 {[%clk
0:01:15.6]} 28. Qc1 {[%clk 0:01:11.7]} 28... Ne8 {[%clk 0:01:00.4]} 29. a4
{[%clk 0:01:05.4]} 29... Qxc1+ {[%clk 0:00:54.1]} 30. Bxc1 {[%clk 0:01:06.3]}
30... Kf8 {[%clk 0:00:51.9]} 31. a5 {[%clk 0:01:00.2]} 31... Ba7 {[%clk
0:00:49.4]} 32. Bc2 {[%clk 0:01:00.6]} 32... b5 {[%clk 0:00:39]} 33. axb6 {[%clk
0:00:48.2]} 33... Bxb6 {[%clk 0:00:39]} 34. Be3 {[%clk 0:00:39.5]} 34... Bxe3
{[%clk 0:00:34.7]} 35. Nxe3 {[%clk 0:00:40.4]} 35... g6 {[%clk 0:00:27.9]} 36.
Bd3 {[%clk 0:00:37.9]} 36... Nc7 {[%clk 0:00:27.8]} 37. Nc4 {[%clk 0:00:37.4]}
37... Ke7 {[%clk 0:00:27.5]} 38. Na5 {[%clk 0:00:37.7]} 38... Nb8 {[%clk
0:00:28]} 39. f3 {[%clk 0:00:31.6]} 39... Kd7 {[%clk 0:00:27.2]} 40. Kf2 {[%clk
0:00:31]} 40... Na8 {[%clk 0:00:24.7]} 41. Nc6 {[%clk 0:00:28.8]} 41... Nxc6
{[%clk 0:00:21.4]} 42. dxc6+ {[%clk 0:00:29.7]} 42... Kxc6 {[%clk 0:00:21.9]}
43. Bxa6 {[%clk 0:00:30.6]} 43... Nb6 {[%clk 0:00:20.9]} 44. Ke3 {[%clk
0:00:30.4]} 44... f5 {[%clk 0:00:20.1]} 45. Bd3 {[%clk 0:00:30.1]} 45... f4+
{[%clk 0:00:20.3]} 46. Kd2 {[%clk 0:00:29.9]} 46... g5 {[%clk 0:00:20.4]} 47.
Kc3 {[%clk 0:00:30.3]} 47... Nc8 {[%clk 0:00:19.2]} 48. Bc2 {[%clk 0:00:29.2]}
48... Kb6 {[%clk 0:00:19.2]} 49. Ba4 {[%clk 0:00:29]} 49... Ne7 {[%clk
0:00:19.7]} 50. Kc4 {[%clk 0:00:29.3]} 50... Ng6 {[%clk 0:00:19.3]} 51. Kd5
{[%clk 0:00:29.4]} 51... Kc7 {[%clk 0:00:19.3]} 52. b5 {[%clk 0:00:29.5]} 52...
Nh4 {[%clk 0:00:19.3]} 53. b6+ {[%clk 0:00:27]} 53... Kxb6 {[%clk 0:00:19.5]}
54. Kxd6 {[%clk 0:00:27.7]} 54... Nxg2 {[%clk 0:00:19.7]} 55. Kxe5 {[%clk
0:00:28.2]} 55... Ne1 {[%clk 0:00:19.5]} 56. Bd1 {[%clk 0:00:25.3]} 56... Kc5
{[%clk 0:00:19.2]} 57. Kf5 {[%clk 0:00:25.3]} 57... Kd4 {[%clk 0:00:18.3]} 58.
Kg6 {[%clk 0:00:25.7]} 58... Ke3 {[%clk 0:00:18.2]} 59. Kxh6 {[%clk 0:00:25.6]}
59... Nxf3 {[%clk 0:00:18.9]} 60. Bxf3 {[%clk 0:00:18.7]} 60... Kxf3 {[%clk
0:00:19]} 61. e5 {[%clk 0:00:19.6]} 61... Kg2 {[%clk 0:00:18]} 62. e6 {[%clk
0:00:20.5]} 62... f3 {[%clk 0:00:18.6]} 63. e7 {[%clk 0:00:21.2]} 63... f2
{[%clk 0:00:19.3]} 64. e8=Q {[%clk 0:00:20.8]} 64... f1=Q {[%clk 0:00:19.7]} 65.
Qe4+ {[%clk 0:00:20.4]} 65... Kxh3 {[%clk 0:00:18.6]} 66. Kxg5 {[%clk
0:00:19.3]} 66... Qg1+ {[%clk 0:00:18.1]} 67. Kf6 {[%clk 0:00:19.2]} 67... Qg4
{[%clk 0:00:16.7]} 68. Qxg4+ {[%clk 0:00:16.3]} 68... Kxg4 {[%clk 0:00:15.8]}
1/2-1/2

[Event "*** SCC Grand Prix: Titled Tuesday Blitz"]
[Site "Chess.com"]
[Date "2020.07.14"]
[Round "9"]
[White "AttilaTurzo"]
[Black "Kotofeyca"]
[Result "1-0"]
[WhiteElo "2482"]
[BlackElo "2309"]
[TimeControl "180+1"]
[EndTime "11:48:19 PDT"]
[Termination "AttilaTurzo won on time"]

1. e4 {[%clk 0:03:00.9]} 1... c5 {[%clk 0:02:59]} 2. Nf3 {[%clk 0:03:00.6]} 2...
d6 {[%clk 0:02:59.2]} 3. d4 {[%clk 0:03:01.2]} 3... cxd4 {[%clk 0:02:59.2]} 4.
Nxd4 {[%clk 0:03:02.1]} 4... Nf6 {[%clk 0:02:59.6]} 5. Nc3 {[%clk 0:03:02.8]}
5... a6 {[%clk 0:02:59.9]} 6. Bg5 {[%clk 0:03:03.4]} 6... e6 {[%clk 0:02:59.7]}
7. f4 {[%clk 0:03:03.5]} 7... Qb6 {[%clk 0:02:59.1]} 8. a3 {[%clk 0:02:56.4]}
8... Nc6 {[%clk 0:02:57.7]} 9. Bxf6 {[%clk 0:02:50.8]} 9... gxf6 {[%clk
0:02:56.9]} 10. Nxc6 {[%clk 0:02:46.5]} 10... bxc6 {[%clk 0:02:56.6]} 11. Qc1
{[%clk 0:02:45.1]} 11... Rb8 {[%clk 0:02:49.2]} 12. Rb1 {[%clk 0:02:35.4]} 12...
d5 {[%clk 0:02:35.1]} 13. Bd3 {[%clk 0:02:33.2]} 13... Bc5 {[%clk 0:02:24.3]}
14. Ke2 {[%clk 0:02:24.8]} 14... Bd4 {[%clk 0:02:12.4]} 15. Na4 {[%clk 0:02:10]}
15... Qa5 {[%clk 0:02:09.3]} 16. b3 {[%clk 0:02:09]} 16... Rg8 {[%clk
0:01:31.3]} 17. g3 {[%clk 0:02:06.5]} 17... Bd7 {[%clk 0:01:08.2]} 18. c3 {[%clk
0:02:02.2]} 18... Ba7 {[%clk 0:01:05.1]} 19. c4 {[%clk 0:01:49.9]} 19... Bd4
{[%clk 0:00:48.5]} 20. cxd5 {[%clk 0:01:32.4]} 20... cxd5 {[%clk 0:00:47.8]} 21.
exd5 {[%clk 0:01:32.8]} 21... e5 {[%clk 0:00:33.7]} 22. Be4 {[%clk 0:00:46.8]}
22... Bg4+ {[%clk 0:00:31.4]} 23. Kd3 {[%clk 0:00:40.4]} 23... f5 {[%clk
0:00:19.9]} 24. Qc6+ {[%clk 0:00:21.8]} 24... Kf8 {[%clk 0:00:19.7]} 25. Qd6+
{[%clk 0:00:09.8]} 25... Kg7 {[%clk 0:00:18.7]} 26. fxe5 {[%clk 0:00:10.1]}
26... Qb5+ {[%clk 0:00:16.5]} 27. Kxd4 {[%clk 0:00:09.3]} 27... Rgd8 {[%clk
0:00:12.3]} 28. Qf6+ {[%clk 0:00:04.8]} 28... Kg8 {[%clk 0:00:11.4]} 29. Bg2
{[%clk 0:00:04.7]} 29... Qe2 {[%clk 0:00:10.6]} 30. Rb2 {[%clk 0:00:02.4]} 30...
Qb5 {[%clk 0:00:07.3]} 31. Qg5+ {[%clk 0:00:02.6]} 31... Kh8 {[%clk 0:00:06.6]}
32. Qf6+ {[%clk 0:00:02.6]} 32... Kg8 {[%clk 0:00:07]} 33. Rc1 {[%clk
0:00:02.9]} 33... Rxd5+ {[%clk 0:00:05]} 34. Bxd5 {[%clk 0:00:02.3]} 34... Bh5
{[%clk 0:00:03.9]} 35. Qg5+ {[%clk 0:00:02.3]} 35... Bg6 {[%clk 0:00:04]} 36.
Nc5 {[%clk 0:00:02.8]} 36... Qa5 {[%clk 0:00:03.5]} 37. b4 {[%clk 0:00:02.9]}
37... Qb6 {[%clk 0:00:03.8]} 38. Qd2 {[%clk 0:00:03.1]} 38... Rd8 {[%clk
0:00:04.1]} 39. Ke3 {[%clk 0:00:03.3]} 39... Qb8 {[%clk 0:00:03.1]} 40. Rd1
{[%clk 0:00:03.4]} 40... Qxe5+ {[%clk 0:00:03.2]} 41. Kf2 {[%clk 0:00:03.9]}
41... f4 {[%clk 0:00:03.4]} 42. gxf4 {[%clk 0:00:03.3]} 42... Qf5 {[%clk
0:00:03.1]} 43. Be4 {[%clk 0:00:03.1]} 43... Qh3 {[%clk 0:00:04]} 44. Bxg6
{[%clk 0:00:03.2]} 44... Qxh2+ {[%clk 0:00:04.2]} 45. Kf3 {[%clk 0:00:03.4]}
45... Qh3+ {[%clk 0:00:04.8]} 46. Ke4 {[%clk 0:00:03.4]} 46... Rxd2 {[%clk
0:00:04.3]} 47. Bxf7+ {[%clk 0:00:02.9]} 47... Kxf7 {[%clk 0:00:04.1]} 48. Rbxd2
{[%clk 0:00:03.8]} 48... Qg4 {[%clk 0:00:03.4]} 49. Rd7+ {[%clk 0:00:03.6]}
49... Ke8 {[%clk 0:00:04.3]} 50. R1d6 {[%clk 0:00:03.8]} 50... Qe2+ {[%clk
0:00:03.6]} 51. Kd5 {[%clk 0:00:04.2]} 51... Qf3+ {[%clk 0:00:03.7]} 52. Kc4
{[%clk 0:00:04.1]} 52... Qe2+ {[%clk 0:00:03.9]} 53. Rd3 {[%clk 0:00:04.2]}
53... Qc2+ {[%clk 0:00:03.7]} 54. Rc3 {[%clk 0:00:04.4]} 54... Qa2+ {[%clk
0:00:03.1]} 55. Kd4 {[%clk 0:00:04]} 55... Qd2+ {[%clk 0:00:03.1]} 56. Kc4
{[%clk 0:00:04.3]} 56... Qa2+ {[%clk 0:00:02.4]} 57. Nb3 {[%clk 0:00:04.4]}
57... Kxd7 {[%clk 0:00:01]} 58. Rd3+ {[%clk 0:00:04.6]} 58... Ke6 {[%clk
0:00:01.3]} 59. Kc3 {[%clk 0:00:04]} 59... Kf5 {[%clk 0:00:01.6]} 60. Nd4+
{[%clk 0:00:03.7]} 1-0

[Event "*** SCC Grand Prix: Titled Tuesday Blitz"]
[Site "Chess.com"]
[Date "2020.07.14"]
[Round "9"]
[White "shnitez"]
[Black "BJthechessgod"]
[Result "1/2-1/2"]
[WhiteElo "2521"]
[BlackElo "2304"]
[TimeControl "180+1"]
[EndTime "11:48:20 PDT"]
[Termination "Game drawn by stalemate"]

1. d4 {[%clk 0:03:00.9]} 1... Nf6 {[%clk 0:02:59.7]} 2. c4 {[%clk 0:03:01]} 2...
e6 {[%clk 0:03:00.6]} 3. Nc3 {[%clk 0:03:00.9]} 3... Bb4 {[%clk 0:03:01.2]} 4.
e3 {[%clk 0:03:01.3]} 4... O-O {[%clk 0:03:00.6]} 5. Ne2 {[%clk 0:03:00.8]} 5...
c5 {[%clk 0:03:00.3]} 6. a3 {[%clk 0:03:00.2]} 6... Bxc3+ {[%clk 0:02:59.5]} 7.
Nxc3 {[%clk 0:03:01.1]} 7... cxd4 {[%clk 0:03:00]} 8. Qxd4 {[%clk 0:03:01.2]}
8... d5 {[%clk 0:03:00.7]} 9. cxd5 {[%clk 0:03:00.8]} 9... exd5 {[%clk
0:02:57.8]} 10. Bd3 {[%clk 0:02:46.3]} 10... Nc6 {[%clk 0:02:49.7]} 11. Qh4
{[%clk 0:02:46.1]} 11... h6 {[%clk 0:02:46.9]} 12. O-O {[%clk 0:02:42.2]} 12...
d4 {[%clk 0:02:40.1]} 13. Ne4 {[%clk 0:02:32.3]} 13... Nxe4 {[%clk 0:02:33.3]}
14. Qxe4 {[%clk 0:02:33.2]} 14... f5 {[%clk 0:02:23.1]} 15. Qf4 {[%clk
0:02:27.6]} 15... Be6 {[%clk 0:02:01.2]} 16. exd4 {[%clk 0:02:10.3]} 16... Qxd4
{[%clk 0:01:59.1]} 17. Qxd4 {[%clk 0:02:07]} 17... Nxd4 {[%clk 0:02:00]} 18. Be3
{[%clk 0:02:06.2]} 18... Nb3 {[%clk 0:01:56.2]} 19. Rad1 {[%clk 0:02:05.2]}
19... f4 {[%clk 0:01:53.2]} 20. Bd2 {[%clk 0:01:49.5]} 20... Nxd2 {[%clk
0:01:48.2]} 21. Rxd2 {[%clk 0:01:50.4]} 21... Rfd8 {[%clk 0:01:48.4]} 22. Rfd1
{[%clk 0:01:50.3]} 22... Kf8 {[%clk 0:01:38]} 23. Be4 {[%clk 0:01:48.2]} 23...
Rxd2 {[%clk 0:01:36.8]} 24. Rxd2 {[%clk 0:01:49.1]} 24... Rc8 {[%clk 0:01:34.8]}
25. f3 {[%clk 0:01:41.7]} 25... b6 {[%clk 0:01:27.2]} 26. Kf2 {[%clk 0:01:40.8]}
26... Ke7 {[%clk 0:01:26.7]} 27. g3 {[%clk 0:01:28.8]} 27... fxg3+ {[%clk
0:01:23.6]} 28. hxg3 {[%clk 0:01:29.7]} 28... Rd8 {[%clk 0:01:20.2]} 29. Rc2
{[%clk 0:01:27.9]} 29... Rc8 {[%clk 0:01:20.6]} 30. Re2 {[%clk 0:01:23.1]} 30...
Kf6 {[%clk 0:01:16.8]} 31. Ke3 {[%clk 0:01:22.6]} 31... Bf5 {[%clk 0:01:09.6]}
32. Rd2 {[%clk 0:01:12.1]} 32... Bxe4 {[%clk 0:01:07.2]} 33. Kxe4 {[%clk
0:01:05.8]} 33... Ke6 {[%clk 0:00:57.9]} 34. f4 {[%clk 0:00:58.5]} 34... Rc4+
{[%clk 0:00:53.1]} 35. Kf3 {[%clk 0:00:57.3]} 35... Rc8 {[%clk 0:00:52]} 36.
Re2+ {[%clk 0:00:54.4]} 36... Kf6 {[%clk 0:00:51.9]} 37. Rd2 {[%clk 0:00:51.6]}
37... Ke6 {[%clk 0:00:52]} 38. g4 {[%clk 0:00:38.6]} 38... g6 {[%clk 0:00:49]}
39. Ke4 {[%clk 0:00:36.7]} 39... Rc4+ {[%clk 0:00:48.2]} 40. Ke3 {[%clk
0:00:37.2]} 40... Rc8 {[%clk 0:00:48]} 41. Rh2 {[%clk 0:00:35.3]} 41... Rh8
{[%clk 0:00:45.1]} 42. Ke4 {[%clk 0:00:35.6]} 42... h5 {[%clk 0:00:43.1]} 43.
gxh5 {[%clk 0:00:20.5]} 43... gxh5 {[%clk 0:00:41.2]} 44. f5+ {[%clk 0:00:20.6]}
44... Kf6 {[%clk 0:00:41.5]} 45. Kf4 {[%clk 0:00:20.9]} 45... h4 {[%clk
0:00:41.2]} 46. Rh3 {[%clk 0:00:21]} 46... Rh5 {[%clk 0:00:40.5]} 47. Kg4 {[%clk
0:00:19.3]} 47... Rh8 {[%clk 0:00:30.4]} 48. Kf4 {[%clk 0:00:17.8]} 48... b5
{[%clk 0:00:25]} 49. b4 {[%clk 0:00:17.4]} 49... a6 {[%clk 0:00:24.5]} 50. Kg4
{[%clk 0:00:17.6]} 50... Rh7 {[%clk 0:00:24.5]} 51. Kf4 {[%clk 0:00:17.6]} 51...
Rh5 {[%clk 0:00:21.1]} 52. Kg4 {[%clk 0:00:17.5]} 52... Rh6 {[%clk 0:00:21.4]}
53. Re3 {[%clk 0:00:11.3]} 53... Rh8 {[%clk 0:00:14.3]} 54. Re6+ {[%clk
0:00:08.8]} 54... Kf7 {[%clk 0:00:14.1]} 55. Kh3 {[%clk 0:00:08.9]} 55... Rh5
{[%clk 0:00:09.2]} 56. Rxa6 {[%clk 0:00:08.2]} 56... Rxf5 {[%clk 0:00:09]} 57.
Kxh4 {[%clk 0:00:08.7]} 57... Ke7 {[%clk 0:00:07.7]} 58. Kg4 {[%clk 0:00:08.7]}
58... Rf1 {[%clk 0:00:05.4]} 59. Rb6 {[%clk 0:00:07.4]} 59... Ra1 {[%clk
0:00:05.7]} 60. Rxb5 {[%clk 0:00:07.4]} 60... Rxa3 {[%clk 0:00:05.7]} 61. Kf4
{[%clk 0:00:07.5]} 61... Kd6 {[%clk 0:00:05.6]} 62. Ke4 {[%clk 0:00:07.8]} 62...
Kc6 {[%clk 0:00:05.7]} 63. Rc5+ {[%clk 0:00:08]} 63... Kb6 {[%clk 0:00:06.1]}
64. Kd4 {[%clk 0:00:08.9]} 64... Ra1 {[%clk 0:00:06.3]} 65. Kc4 {[%clk 0:00:09]}
65... Rc1+ {[%clk 0:00:06.6]} 66. Kd5 {[%clk 0:00:08.7]} 66... Rxc5+ {[%clk
0:00:06.8]} 67. bxc5+ {[%clk 0:00:08.2]} 67... Kc7 {[%clk 0:00:07.7]} 68. c6
{[%clk 0:00:09.1]} 68... Kc8 {[%clk 0:00:07.8]} 69. Kd6 {[%clk 0:00:09.1]} 69...
Kd8 {[%clk 0:00:08.2]} 70. c7+ {[%clk 0:00:10]} 70... Kc8 {[%clk 0:00:08.7]} 71.
Kc6 {[%clk 0:00:10.9]} 1/2-1/2

[Event "*** SCC Grand Prix: Titled Tuesday Blitz"]
[Site "Chess.com"]
[Date "2020.07.14"]
[Round "9"]
[White "RobPeresian"]
[Black "mattcolins2025"]
[Result "0-1"]
[WhiteElo "2235"]
[BlackElo "2391"]
[TimeControl "180+1"]
[EndTime "11:48:21 PDT"]
[Termination "mattcolins2025 won on time"]

1. e4 {[%clk 0:03:00.9]} 1... c5 {[%clk 0:02:59.9]} 2. Nf3 {[%clk 0:03:00.6]}
2... e6 {[%clk 0:03:00.1]} 3. c4 {[%clk 0:03:00.1]} 3... Nc6 {[%clk 0:02:59.7]}
4. Nc3 {[%clk 0:02:59.6]} 4... Nf6 {[%clk 0:02:58.6]} 5. a3 {[%clk 0:02:59.3]}
5... a5 {[%clk 0:02:57.9]} 6. d4 {[%clk 0:02:53.1]} 6... cxd4 {[%clk 0:02:57.9]}
7. Nxd4 {[%clk 0:02:53.1]} 7... Bc5 {[%clk 0:02:58]} 8. Be3 {[%clk 0:02:52.9]}
8... Qe7 {[%clk 0:02:55.2]} 9. Nxc6 {[%clk 0:02:19.5]} 9... bxc6 {[%clk
0:02:52.9]} 10. e5 {[%clk 0:02:17.8]} 10... Ng8 {[%clk 0:02:53.2]} 11. Ne4
{[%clk 0:02:14.9]} 11... Bxe3 {[%clk 0:02:49.7]} 12. Nd6+ {[%clk 0:02:10.3]}
12... Kf8 {[%clk 0:02:50]} 13. fxe3 {[%clk 0:02:09.7]} 13... f6 {[%clk
0:02:47.9]} 14. c5 {[%clk 0:01:56]} 14... fxe5 {[%clk 0:02:47.2]} 15. Bd3 {[%clk
0:01:49]} 15... Nf6 {[%clk 0:02:45.5]} 16. O-O {[%clk 0:01:47.8]} 16... Kg8
{[%clk 0:02:31.4]} 17. e4 {[%clk 0:01:22.4]} 17... h6 {[%clk 0:02:25.9]} 18. Qf3
{[%clk 0:01:04.4]} 18... Kh7 {[%clk 0:02:23.1]} 19. Qg3 {[%clk 0:01:03.4]} 19...
Ba6 {[%clk 0:02:18.4]} 20. Bxa6 {[%clk 0:00:58.2]} 20... Rxa6 {[%clk 0:02:18.6]}
21. Qxe5 {[%clk 0:00:57.4]} 21... Raa8 {[%clk 0:01:56.7]} 22. Rad1 {[%clk
0:00:24.5]} 22... Rhf8 {[%clk 0:01:50.3]} 23. h3 {[%clk 0:00:20.8]} 23... a4
{[%clk 0:01:38.9]} 24. Rd3 {[%clk 0:00:20.7]} 24... Ra5 {[%clk 0:01:21.4]} 25.
Rdf3 {[%clk 0:00:19.9]} 25... Raa8 {[%clk 0:00:53.5]} 26. g4 {[%clk 0:00:19.3]}
26... Ng8 {[%clk 0:00:48.1]} 27. Rf7 {[%clk 0:00:18.1]} 27... Rxf7 {[%clk
0:00:46.5]} 28. Rxf7 {[%clk 0:00:18.6]} 28... Qg5 {[%clk 0:00:45.1]} 29. Qxg5
{[%clk 0:00:18]} 29... hxg5 {[%clk 0:00:46]} 30. Rxd7 {[%clk 0:00:18.1]} 30...
Nf6 {[%clk 0:00:45.5]} 31. Rc7 {[%clk 0:00:13.5]} 31... Rb8 {[%clk 0:00:45.9]}
32. Rb7 {[%clk 0:00:09.9]} 32... Rxb7 {[%clk 0:00:45.7]} 33. Nxb7 {[%clk
0:00:10.8]} 33... Nxe4 {[%clk 0:00:46.4]} 34. Kg2 {[%clk 0:00:09.5]} 34... Kg6
{[%clk 0:00:42.1]} 35. Kf3 {[%clk 0:00:09.6]} 35... Nd2+ {[%clk 0:00:41.9]} 36.
Ke2 {[%clk 0:00:09.7]} 36... Nc4 {[%clk 0:00:41.7]} 37. Nd8 {[%clk 0:00:08]}
37... Nxb2 {[%clk 0:00:39.9]} 38. Nxc6 {[%clk 0:00:08.1]} 38... Nc4 {[%clk
0:00:39.7]} 39. Nd4 {[%clk 0:00:05.8]} 39... Kf6 {[%clk 0:00:38.1]} 40. Nc2
{[%clk 0:00:05.3]} 40... Ke5 {[%clk 0:00:37.5]} 41. Kd3 {[%clk 0:00:05.5]} 41...
Kd5 {[%clk 0:00:37.1]} 42. Kc3 {[%clk 0:00:02]} 42... Kxc5 {[%clk 0:00:36.9]}
43. Kd3 {[%clk 0:00:02]} 43... Ne5+ {[%clk 0:00:33.4]} 44. Ke4 {[%clk
0:00:02.1]} 44... Ng6 {[%clk 0:00:31.8]} 45. Kd3 {[%clk 0:00:01.9]} 45... Nf4+
{[%clk 0:00:31.7]} 46. Ke4 {[%clk 0:00:02.1]} 46... Nxh3 {[%clk 0:00:31.9]} 47.
Ke5 {[%clk 0:00:03]} 47... Nf4 {[%clk 0:00:31.7]} 48. Ne3 {[%clk 0:00:02.7]}
48... Kb5 {[%clk 0:00:19.8]} 49. Ke4 {[%clk 0:00:02.3]} 49... Ng6 {[%clk
0:00:18.2]} 50. Kd4 {[%clk 0:00:02]} 50... Ne7 {[%clk 0:00:17.2]} 51. Ke4 {[%clk
0:00:02.4]} 51... Kc5 {[%clk 0:00:17.3]} 52. Ke5 {[%clk 0:00:02.5]} 52... Nd5
{[%clk 0:00:17.2]} 53. Nc2 {[%clk 0:00:03]} 53... Nf4 {[%clk 0:00:16.6]} 54. Ne3
{[%clk 0:00:02.3]} 54... Ng6+ {[%clk 0:00:15.5]} 55. Kxe6 {[%clk 0:00:02.2]}
55... Kd4 {[%clk 0:00:16]} 56. Nf5+ {[%clk 0:00:01.5]} 56... Kc3 {[%clk
0:00:14.6]} 57. Kf7 {[%clk 0:00:02.4]} 57... Ne5+ {[%clk 0:00:14.6]} 58. Kxg7
{[%clk 0:00:02.4]} 58... Nxg4 {[%clk 0:00:14.8]} 59. Kg6 {[%clk 0:00:02.7]}
59... Ne5+ {[%clk 0:00:13.6]} 60. Kxg5 {[%clk 0:00:02.9]} 60... Kb3 {[%clk
0:00:14.5]} 61. Kf4 {[%clk 0:00:03.2]} 61... Nc4 {[%clk 0:00:13.9]} 62. Ke4
{[%clk 0:00:02.8]} 62... Nxa3 {[%clk 0:00:14.1]} 63. Kd3 {[%clk 0:00:02.7]}
63... Nc2 {[%clk 0:00:12.8]} 64. Nd6 {[%clk 0:00:01.1]} 64... a3 {[%clk
0:00:12.9]} 0-1

[Event "*** SCC Grand Prix: Titled Tuesday Blitz"]
[Site "Chess.com"]
[Date "2020.07.14"]
[Round "9"]
[White "K-Nygren"]
[Black "chessplayer9919"]
[Result "1-0"]
[WhiteElo "2500"]
[BlackElo "2631"]
[TimeControl "180+1"]
[EndTime "11:48:23 PDT"]
[Termination "K-Nygren won by checkmate"]

1. e4 {[%clk 0:03:00]} 1... c6 {[%clk 0:02:58.2]} 2. d4 {[%clk 0:02:59.6]} 2...
d5 {[%clk 0:02:57.9]} 3. e5 {[%clk 0:02:59.8]} 3... Bf5 {[%clk 0:02:56.3]} 4.
Nd2 {[%clk 0:02:58.3]} 4... e6 {[%clk 0:02:54.9]} 5. Nb3 {[%clk 0:02:57.9]} 5...
Nd7 {[%clk 0:02:54.9]} 6. Be3 {[%clk 0:02:56.8]} 6... Bg6 {[%clk 0:02:50.4]} 7.
Rc1 {[%clk 0:02:55.7]} 7... Ne7 {[%clk 0:02:49.8]} 8. h4 {[%clk 0:02:53.9]} 8...
h6 {[%clk 0:02:44.8]} 9. g4 {[%clk 0:02:51.4]} 9... h5 {[%clk 0:02:40.7]} 10.
Be2 {[%clk 0:02:46.7]} 10... hxg4 {[%clk 0:02:33.4]} 11. Bxg4 {[%clk 0:02:45.4]}
11... Nf5 {[%clk 0:02:32.2]} 12. h5 {[%clk 0:02:41.6]} 12... Nxe3 {[%clk
0:02:30.5]} 13. fxe3 {[%clk 0:02:41]} 13... Qg5 {[%clk 0:02:29.9]} 14. Qe2
{[%clk 0:01:34]} 14... Be4 {[%clk 0:01:14.5]} 15. Bf3 {[%clk 0:01:24.3]} 15...
Nb6 {[%clk 0:01:02.6]} 16. Bxe4 {[%clk 0:01:19.5]} 16... dxe4 {[%clk 0:01:03.5]}
17. Nh3 {[%clk 0:01:04.4]} 17... Qg3+ {[%clk 0:00:59.4]} 18. Nf2 {[%clk
0:01:03.2]} 18... Nd5 {[%clk 0:00:55.6]} 19. Rh3 {[%clk 0:00:53.8]} 19... Qg2
{[%clk 0:00:41.3]} 20. Kd2 {[%clk 0:00:35.1]} 20... O-O-O {[%clk 0:00:30.6]} 21.
Rch1 {[%clk 0:00:34.5]} 21... Qg5 {[%clk 0:00:23.1]} 22. Nxe4 {[%clk 0:00:33.4]}
22... Qh6 {[%clk 0:00:22.6]} 23. Kc1 {[%clk 0:00:30.3]} 23... Be7 {[%clk
0:00:21.1]} 24. Kb1 {[%clk 0:00:30]} 24... f5 {[%clk 0:00:21.1]} 25. exf6 {[%clk
0:00:29.8]} 25... gxf6 {[%clk 0:00:21.5]} 26. a3 {[%clk 0:00:29]} 26... f5
{[%clk 0:00:21.7]} 27. Nec5 {[%clk 0:00:28.8]} 27... Rhg8 {[%clk 0:00:17.8]} 28.
Na5 {[%clk 0:00:24.5]} 28... Bxc5 {[%clk 0:00:14.7]} 29. dxc5 {[%clk 0:00:23.5]}
29... Rg4 {[%clk 0:00:13.3]} 30. Nc4 {[%clk 0:00:19.1]} 30... Rdg8 {[%clk
0:00:09.3]} 31. e4 {[%clk 0:00:17.5]} 31... fxe4 {[%clk 0:00:05.9]} 32. Nd6+
{[%clk 0:00:17.1]} 32... Kb8 {[%clk 0:00:06]} 33. Ka2 {[%clk 0:00:14.6]} 33...
Qf4 {[%clk 0:00:03.8]} 34. Rb3 {[%clk 0:00:14.2]} 34... b6 {[%clk 0:00:03]} 35.
Qa6 {[%clk 0:00:12.8]} 35... R4g7 {[%clk 0:00:03.1]} 36. h6 {[%clk 0:00:12.5]}
36... Rh7 {[%clk 0:00:03.1]} 37. Rd1 {[%clk 0:00:11.9]} 37... Qf2 {[%clk
0:00:03.1]} 38. Rxd5 {[%clk 0:00:09.2]} 38... exd5 {[%clk 0:00:02.7]} 39. cxb6
{[%clk 0:00:09.3]} 39... axb6 {[%clk 0:00:02.1]} 40. Rxb6+ {[%clk 0:00:09]}
40... Kc7 {[%clk 0:00:02.5]} 41. Rxc6+ {[%clk 0:00:08.9]} 41... Kd7 {[%clk
0:00:02.9]} 42. Qb7+ {[%clk 0:00:08.5]} 42... Ke6 {[%clk 0:00:03.3]} 43. Qxh7
{[%clk 0:00:06.6]} 43... Ke5 {[%clk 0:00:02.2]} 44. Nc4+ {[%clk 0:00:06]} 44...
dxc4 {[%clk 0:00:02]} 45. Qxg8 {[%clk 0:00:06]} 45... c3 {[%clk 0:00:01.3]} 46.
Qg7+ {[%clk 0:00:04.6]} 46... Kd5 {[%clk 0:00:01.4]} 47. Qd7+ {[%clk 0:00:04.4]}
47... Ke5 {[%clk 0:00:01.6]} 48. Qe7+ {[%clk 0:00:03.8]} 48... Kf4 {[%clk
0:00:02.5]} 49. Rf6+ {[%clk 0:00:03.5]} 49... Ke3 {[%clk 0:00:03.4]} 50. Rxf2
{[%clk 0:00:04]} 50... cxb2 {[%clk 0:00:04.3]} 51. Re2+ {[%clk 0:00:03.9]} 51...
Kxe2 {[%clk 0:00:04.3]} 52. Qxe4+ {[%clk 0:00:03.5]} 52... Kd1 {[%clk
0:00:04.7]} 53. Kxb2 {[%clk 0:00:03.7]} 53... Kd2 {[%clk 0:00:05]} 54. Qd3+
{[%clk 0:00:04.1]} 54... Ke1 {[%clk 0:00:05.1]} 55. h7 {[%clk 0:00:05]} 55...
Kf2 {[%clk 0:00:06]} 56. h8=Q {[%clk 0:00:05.5]} 56... Ke1 {[%clk 0:00:06.9]}
57. Qe8+ {[%clk 0:00:05.8]} 57... Kf2 {[%clk 0:00:07]} 58. Qf5+ {[%clk
0:00:06.7]} 58... Kg3 {[%clk 0:00:07.9]} 59. Qg8+ {[%clk 0:00:07.1]} 59... Kh4
{[%clk 0:00:08.8]} 60. Qfh7# {[%clk 0:00:07.6]} 1-0